[Event "January 2 Late 2024"]
[Site "https://www.chess.com"]
[Date "2024.01.02"]
[Round "3"]
[White "Keleberda, Tymur"]
[Black "Jaque Gutierrez, Matias"]
[Result "1-0"]
[Board "107"]
[TimeControl "180+1"]
[WhiteFideId "14174294"]
[BlackFideId "3426980"]
[WhiteElo "2641"]
[BlackElo "2435"]
[WhiteTeam "CAN"]
[BlackTeam "CHI"]
[WhiteClock "0:00:57"]
[BlackClock "0:00:01"]

1. c4 {[%clk 0:03:00]}  c5 {[%clk 0:02:56]} 2. b3 {[%clk 0:02:59]}  Nf6 {[%clk 0:02:55]} 3. g3 {[%clk 0:02:59]}  g6 {[%clk 0:02:48]} 4. Bg2 {[%clk 0:02:59]}  Bg7 {[%clk 0:02:48]} 5. Bb2 {[%clk 0:03:00]}  Nc6 {[%clk 0:02:48]} 6. e3 {[%clk 0:03:00]}  O-O {[%clk 0:02:46]} 7. Nf3 {[%clk 0:02:57]}  d5 {[%clk 0:02:46]} 8. cxd5 {[%clk 0:02:52]}  Nxd5 {[%clk 0:02:47]} 9. Bxg7 {[%clk 0:02:51]}  Kxg7 {[%clk 0:02:48]} 10. O-O {[%clk 0:02:45]}  Nf6 {[%clk 0:02:24]} 11. Qc1 {[%clk 0:02:39]}  Qd6 {[%clk 0:02:18]} 12. Rd1 {[%clk 0:02:35]}  Bg4 {[%clk 0:02:14]} 13. d4 {[%clk 0:02:33]}  cxd4 {[%clk 0:02:03]} 14. Na3 {[%clk 0:02:22]}  d3 {[%clk 0:01:46]} 15. h3 {[%clk 0:02:10]}  Bxf3 {[%clk 0:01:43]} 16. Bxf3 {[%clk 0:02:10]}  Ne5 {[%clk 0:01:39]} 17. Bg2 {[%clk 0:02:08]}  Rac8 {[%clk 0:01:38]} 18. Qb2 {[%clk 0:02:07]}  b6 {[%clk 0:01:03]} 19. f4 {[%clk 0:02:06]}  Ned7 {[%clk 0:00:52]} 20. Nc4 {[%clk 0:02:05]}  Qe6 {[%clk 0:00:37]} 21. Rxd3 {[%clk 0:02:04]}  Nc5 {[%clk 0:00:37]} 22. Rdd1 {[%clk 0:02:04]}  b5 {[%clk 0:00:37]} 23. Ne5 {[%clk 0:02:04]}  Kg8 {[%clk 0:00:36]} 24. g4 {[%clk 0:02:03]}  Nfe4 {[%clk 0:00:34]} 25. b4 {[%clk 0:01:58]}  Na4 {[%clk 0:00:29]} 26. Qd4 {[%clk 0:01:42]}  Nec3 {[%clk 0:00:28]} 27. Rd2 {[%clk 0:01:42]}  f6 {[%clk 0:00:24]} 28. Nf3 {[%clk 0:01:25]}  Rfd8 {[%clk 0:00:22]} 29. Qxd8+ {[%clk 0:01:25]}  Rxd8 {[%clk 0:00:23]} 30. Rxd8+ {[%clk 0:01:25]}  Kg7 {[%clk 0:00:24]} 31. Re1 {[%clk 0:01:23]}  Qxa2 {[%clk 0:00:20]} 32. Nd4 {[%clk 0:01:23]}  Qc4 {[%clk 0:00:17]} 33. f5 {[%clk 0:01:20]}  Nb6 {[%clk 0:00:13]} 34. h4 {[%clk 0:01:13]}  gxf5 {[%clk 0:00:12]} 35. Nxf5+ {[%clk 0:01:12]}  Kf7 {[%clk 0:00:11]} 36. Bf3 {[%clk 0:01:07]}  Nbd5 {[%clk 0:00:10]} 37. Nh6+ {[%clk 0:00:55]}  Kg6 {[%clk 0:00:10]} 38. Rg8+ {[%clk 0:00:55]}  Kxh6 {[%clk 0:00:02]} 39. g5+ {[%clk 0:00:56]}  fxg5 {[%clk 0:00:01]} 40. hxg5# {[%clk 0:00:57]} 1-0

[Event "January 2 Late 2024"]
[Site "https://www.chess.com"]
[Date "2024.01.02"]
[Round "3"]
[White "Wadsworth, Matthew J"]
[Black "Morales Garcia, Sergio Joshafatt"]
[Result "0-1"]
[Board "109"]
[TimeControl "180+1"]
[WhiteFideId "415804"]
[BlackFideId "5106249"]
[WhiteElo "2641"]
[BlackElo "2434"]
[WhiteTeam "ENG"]
[BlackTeam "MEX"]
[WhiteClock "0:00:58"]
[BlackClock "0:01:19"]

1. e4 {[%clk 0:03:00]}  c5 {[%clk 0:02:59]} 2. Nf3 {[%clk 0:02:59]}  e6 {[%clk 0:02:59]} 3. g3 {[%clk 0:02:59]}  d5 {[%clk 0:02:58]} 4. exd5 {[%clk 0:02:58]}  exd5 {[%clk 0:02:59]} 5. Bg2 {[%clk 0:02:58]}  Nc6 {[%clk 0:03:00]} 6. O-O {[%clk 0:02:58]}  Bg4 {[%clk 0:02:57]} 7. Re1+ {[%clk 0:02:51]}  Be7 {[%clk 0:02:57]} 8. h3 {[%clk 0:02:36]}  Bh5 {[%clk 0:02:57]} 9. g4 {[%clk 0:02:29]}  Bg6 {[%clk 0:02:56]} 10. d4 {[%clk 0:02:24]}  Nf6 {[%clk 0:02:45]} 11. dxc5 {[%clk 0:02:20]}  O-O {[%clk 0:02:45]} 12. Be3 {[%clk 0:02:18]}  Ne4 {[%clk 0:02:35]} 13. Nd4 {[%clk 0:02:13]}  Nxc5 {[%clk 0:01:49]} 14. Nxc6 {[%clk 0:01:50]}  bxc6 {[%clk 0:01:49]} 15. Nc3 {[%clk 0:01:29]}  Rb8 {[%clk 0:01:44]} 16. f4 {[%clk 0:01:25]}  f5 {[%clk 0:01:29]} 17. g5 {[%clk 0:01:22]}  Ne4 {[%clk 0:01:22]} 18. b3 {[%clk 0:00:58]}  Nxc3 {[%clk 0:01:19]} 0-1

[Event "January 2 Late 2024"]
[Site "https://www.chess.com"]
[Date "2024.01.02"]
[Round "3"]
[White "Dobrijevic, Milan"]
[Black "Bjelobrk, Igor"]
[Result "1/2-1/2"]
[Board "110"]
[TimeControl "180+1"]
[WhiteFideId "931632"]
[BlackFideId "4300726"]
[WhiteElo "2433"]
[BlackElo "2638"]
[WhiteTeam "SRB"]
[BlackTeam "AUS"]
[WhiteClock "0:00:38"]
[BlackClock "0:00:09"]

1. e4 {[%clk 0:03:00]}  e6 {[%clk 0:02:55]} 2. d4 {[%clk 0:03:00]}  d5 {[%clk 0:02:50]} 3. Nc3 {[%clk 0:02:59]}  Bb4 {[%clk 0:02:49]} 4. e5 {[%clk 0:02:59]}  b6 {[%clk 0:02:38]} 5. a3 {[%clk 0:02:58]}  Bf8 {[%clk 0:02:37]} 6. Bb5+ {[%clk 0:02:57]}  Bd7 {[%clk 0:02:36]} 7. Bd3 {[%clk 0:02:58]}  c5 {[%clk 0:02:22]} 8. f4 {[%clk 0:02:57]}  a6 {[%clk 0:02:14]} 9. Nf3 {[%clk 0:02:56]}  Nc6 {[%clk 0:02:07]} 10. Be3 {[%clk 0:02:54]}  c4 {[%clk 0:02:04]} 11. Be2 {[%clk 0:02:54]}  Nge7 {[%clk 0:02:01]} 12. O-O {[%clk 0:02:52]}  b5 {[%clk 0:01:58]} 13. Qd2 {[%clk 0:02:47]}  h5 {[%clk 0:01:57]} 14. Kh1 {[%clk 0:02:41]}  Nf5 {[%clk 0:01:56]} 15. Bf2 {[%clk 0:02:40]}  Be7 {[%clk 0:01:53]} 16. Nd1 {[%clk 0:02:35]}  a5 {[%clk 0:01:50]} 17. Ne3 {[%clk 0:02:34]}  g6 {[%clk 0:01:50]} 18. c3 {[%clk 0:02:31]}  b4 {[%clk 0:01:44]} 19. axb4 {[%clk 0:02:29]}  axb4 {[%clk 0:01:44]} 20. Rxa8 {[%clk 0:02:22]}  Qxa8 {[%clk 0:01:43]} 21. Nxf5 {[%clk 0:02:21]}  gxf5 {[%clk 0:01:42]} 22. Ng5 {[%clk 0:02:21]}  Qa2 {[%clk 0:01:38]} 23. cxb4 {[%clk 0:02:18]}  Bxb4 {[%clk 0:01:27]} 24. Qc1 {[%clk 0:02:15]}  h4 {[%clk 0:01:17]} 25. h3 {[%clk 0:02:13]}  Kf8 {[%clk 0:00:53]} 26. Bf3 {[%clk 0:01:40]}  Kg7 {[%clk 0:00:52]} 27. Kh2 {[%clk 0:01:35]}  Be7 {[%clk 0:00:40]} 28. Be1 {[%clk 0:01:28]}  Nxd4 {[%clk 0:00:37]} 29. Bc3 {[%clk 0:01:27]}  Nxf3+ {[%clk 0:00:26]} 30. Nxf3 {[%clk 0:01:23]}  Qa7 {[%clk 0:00:19]} 31. Nd4 {[%clk 0:01:21]}  Bc5 {[%clk 0:00:20]} 32. Qd2 {[%clk 0:01:20]}  Rh6 {[%clk 0:00:20]} 33. Rf3 {[%clk 0:01:16]}  Rg6 {[%clk 0:00:20]} 34. g3 {[%clk 0:01:15]}  hxg3+ {[%clk 0:00:19]} 35. Rxg3 {[%clk 0:01:16]}  Rxg3 {[%clk 0:00:20]} 36. Kxg3 {[%clk 0:01:16]}  Qa1 {[%clk 0:00:18]} 37. Kh2 {[%clk 0:01:11]}  Qf1 {[%clk 0:00:18]} 38. Qg2+ {[%clk 0:01:10]}  Qxg2+ {[%clk 0:00:18]} 39. Kxg2 {[%clk 0:01:10]}  Ba4 {[%clk 0:00:19]} 40. Kg3 {[%clk 0:01:05]}  Bd1 {[%clk 0:00:19]} 41. Kf2 {[%clk 0:01:04]}  Kg6 {[%clk 0:00:19]} 42. Kg3 {[%clk 0:01:05]}  Kh5 {[%clk 0:00:19]} 43. Kg2 {[%clk 0:00:58]}  Be7 {[%clk 0:00:18]} 44. Be1 {[%clk 0:00:52]}  Ba4 {[%clk 0:00:12]} 45. Bc3 {[%clk 0:00:51]}  Bd7 {[%clk 0:00:13]} 46. Be1 {[%clk 0:00:51]}  Kg6 {[%clk 0:00:13]} 47. Kg3 {[%clk 0:00:50]}  f6 {[%clk 0:00:14]} 48. exf6 {[%clk 0:00:48]}  Bxf6 {[%clk 0:00:14]} 49. Bc3 {[%clk 0:00:49]}  e5 {[%clk 0:00:14]} 50. fxe5 {[%clk 0:00:45]}  Bxe5+ {[%clk 0:00:15]} 51. Kg2 {[%clk 0:00:45]}  f4 {[%clk 0:00:15]} 52. Nf3 {[%clk 0:00:44]}  Bxc3 {[%clk 0:00:15]} 53. bxc3 {[%clk 0:00:44]}  Kf5 {[%clk 0:00:15]} 54. Nd2 {[%clk 0:00:40]}  Ke5 {[%clk 0:00:12]} 55. Kf3 {[%clk 0:00:40]}  Bxh3 {[%clk 0:00:12]} 56. Kf2 {[%clk 0:00:39]}  Bg4 {[%clk 0:00:12]} 57. Kg2 {[%clk 0:00:39]}  Bh5 {[%clk 0:00:11]} 58. Kf2 {[%clk 0:00:39]}  Bd1 {[%clk 0:00:10]} 59. Kg2 {[%clk 0:00:39]}  Bb3 {[%clk 0:00:10]} 60. Kf2 {[%clk 0:00:39]}  d4 {[%clk 0:00:10]} 61. cxd4+ {[%clk 0:00:39]}  Kxd4 {[%clk 0:00:10]} 62. Kf3 {[%clk 0:00:38]}  Kd3 {[%clk 0:00:10]} 63. Nxc4 {[%clk 0:00:38]}  Bxc4 {[%clk 0:00:09]} 64. Kxf4 {[%clk 0:00:38]} 1/2-1/2

[Event "January 2 Late 2024"]
[Site "https://www.chess.com"]
[Date "2024.01.02"]
[Round "3"]
[White "Hajiyev, Kanan"]
[Black "Musalov, Ruslan"]
[Result "0-1"]
[Board "114"]
[TimeControl "180+1"]
[WhiteFideId "13404148"]
[BlackFideId "4141490"]
[WhiteElo "2633"]
[BlackElo "2426"]
[WhiteTeam "AZE"]
[BlackTeam "RUS"]
[WhiteClock "0:00:03"]
[BlackClock "0:00:15"]

1. d4 {[%clk 0:03:00]}  Nf6 {[%clk 0:02:57]} 2. Nf3 {[%clk 0:03:01]}  g6 {[%clk 0:02:58]} 3. c4 {[%clk 0:03:01]}  Bg7 {[%clk 0:02:59]} 4. g3 {[%clk 0:03:00]}  O-O {[%clk 0:02:59]} 5. Bg2 {[%clk 0:03:01]}  d6 {[%clk 0:02:59]} 6. O-O {[%clk 0:03:01]}  c6 {[%clk 0:03:00]} 7. b3 {[%clk 0:03:01]}  Nbd7 {[%clk 0:03:01]} 8. Bb2 {[%clk 0:03:01]}  Qc7 {[%clk 0:03:01]} 9. Nbd2 {[%clk 0:02:59]}  e5 {[%clk 0:03:01]} 10. e4 {[%clk 0:02:58]}  Re8 {[%clk 0:03:00]} 11. Re1 {[%clk 0:02:58]}  Nf8 {[%clk 0:03:00]} 12. Qc2 {[%clk 0:02:58]}  Bg4 {[%clk 0:02:48]} 13. h3 {[%clk 0:02:54]}  Bxf3 {[%clk 0:02:48]} 14. Nxf3 {[%clk 0:02:55]}  a6 {[%clk 0:02:47]} 15. Rad1 {[%clk 0:02:55]}  Rad8 {[%clk 0:02:43]} 16. c5 {[%clk 0:02:51]}  dxc5 {[%clk 0:02:41]} 17. dxe5 {[%clk 0:02:47]}  N6d7 {[%clk 0:02:39]} 18. Rd6 {[%clk 0:02:21]}  Nxe5 {[%clk 0:02:31]} 19. Rxd8 {[%clk 0:02:19]}  Rxd8 {[%clk 0:02:26]} 20. Bxe5 {[%clk 0:02:07]}  Bxe5 {[%clk 0:02:27]} 21. Qxc5 {[%clk 0:02:07]}  Bg7 {[%clk 0:02:16]} 22. e5 {[%clk 0:02:01]}  Ne6 {[%clk 0:02:16]} 23. Qe3 {[%clk 0:02:01]}  Bf8 {[%clk 0:02:14]} 24. h4 {[%clk 0:01:56]}  Bc5 {[%clk 0:02:14]} 25. Qe2 {[%clk 0:01:57]}  h5 {[%clk 0:02:10]} 26. Bh3 {[%clk 0:01:54]}  Nd4 {[%clk 0:02:04]} 27. Nxd4 {[%clk 0:01:53]}  Bxd4 {[%clk 0:02:05]} 28. Kh2 {[%clk 0:01:42]}  Rd5 {[%clk 0:01:39]} 29. e6 {[%clk 0:01:34]}  Re5 {[%clk 0:01:39]} 30. e7 {[%clk 0:01:33]}  Qxe7 {[%clk 0:01:37]} 31. Qxe5 {[%clk 0:01:04]}  Bxe5 {[%clk 0:01:36]} 32. f4 {[%clk 0:01:05]}  Qa3 {[%clk 0:01:30]} 33. fxe5 {[%clk 0:00:50]}  Qxa2+ {[%clk 0:01:29]} 34. Kg1 {[%clk 0:00:45]}  Qxb3 {[%clk 0:01:28]} 35. Kf2 {[%clk 0:00:42]}  Kg7 {[%clk 0:01:23]} 36. e6 {[%clk 0:00:41]}  fxe6 {[%clk 0:01:23]} 37. Bxe6 {[%clk 0:00:41]}  Qb2+ {[%clk 0:01:21]} 38. Re2 {[%clk 0:00:42]}  Qf6+ {[%clk 0:01:21]} 39. Kg2 {[%clk 0:00:42]}  a5 {[%clk 0:01:19]} 40. Bb3 {[%clk 0:00:41]}  b5 {[%clk 0:01:17]} 41. Rf2 {[%clk 0:00:42]}  Qe7 {[%clk 0:01:12]} 42. Kf1 {[%clk 0:00:42]}  a4 {[%clk 0:01:11]} 43. Bc2 {[%clk 0:00:39]}  c5 {[%clk 0:01:04]} 44. Re2 {[%clk 0:00:39]}  Qf6+ {[%clk 0:01:04]} 45. Rf2 {[%clk 0:00:38]}  Qc3 {[%clk 0:00:59]} 46. Kg2 {[%clk 0:00:34]}  a3 {[%clk 0:00:58]} 47. Be4 {[%clk 0:00:32]}  b4 {[%clk 0:00:54]} 48. Bd5 {[%clk 0:00:32]}  c4 {[%clk 0:00:33]} 49. Rf7+ {[%clk 0:00:31]}  Kh6 {[%clk 0:00:33]} 50. Kh3 {[%clk 0:00:27]}  a2 {[%clk 0:00:31]} 51. Rf8 {[%clk 0:00:07]}  a1=Q {[%clk 0:00:29]} 52. Be4 {[%clk 0:00:07]}  Qg1 {[%clk 0:00:22]} 53. Bf3 {[%clk 0:00:03]}  Qxf3 {[%clk 0:00:19]} 54. Rh8+ {[%clk 0:00:03]}  Kg7 {[%clk 0:00:19]} 55. Rh7+ {[%clk 0:00:03]}  Kf6 {[%clk 0:00:19]} 56. Rf7+ {[%clk 0:00:04]}  Ke5 {[%clk 0:00:18]} 57. Re7+ {[%clk 0:00:04]}  Kd4 {[%clk 0:00:18]} 58. Rd7+ {[%clk 0:00:04]}  Qd5 {[%clk 0:00:16]} 59. Rf7 {[%clk 0:00:03]}  Qgh1# {[%clk 0:00:15]} 0-1

[Event "January 2 Late 2024"]
[Site "https://www.chess.com"]
[Date "2024.01.02"]
[Round "3"]
[White "Rees, Ioan"]
[Black "Ehlvest, Jaan"]
[Result "0-1"]
[Board "118"]
[TimeControl "180+1"]
[WhiteFideId "1801236"]
[BlackFideId "4500016"]
[WhiteElo "2419"]
[BlackElo "2618"]
[WhiteTeam "WLS"]
[BlackTeam "USA"]
[WhiteClock "0:01:18"]
[BlackClock "0:01:03"]

1. e4 {[%clk 0:03:00]}  g6 {[%clk 0:02:59]} 2. d4 {[%clk 0:03:00]}  Bg7 {[%clk 0:02:59]} 3. Nf3 {[%clk 0:03:00]}  c6 {[%clk 0:02:56]} 4. h3 {[%clk 0:02:58]}  d5 {[%clk 0:02:55]} 5. e5 {[%clk 0:02:58]}  Nh6 {[%clk 0:02:51]} 6. Bd3 {[%clk 0:02:53]}  O-O {[%clk 0:02:48]} 7. O-O {[%clk 0:02:50]}  f6 {[%clk 0:02:48]} 8. Re1 {[%clk 0:02:47]}  fxe5 {[%clk 0:02:42]} 9. Nxe5 {[%clk 0:02:44]}  Nd7 {[%clk 0:02:35]} 10. Nxd7 {[%clk 0:02:32]}  Bxd7 {[%clk 0:02:35]} 11. c3 {[%clk 0:02:30]}  Nf7 {[%clk 0:02:33]} 12. Nd2 {[%clk 0:02:27]}  e5 {[%clk 0:02:33]} 13. dxe5 {[%clk 0:02:22]}  Nxe5 {[%clk 0:02:32]} 14. Bf1 {[%clk 0:02:21]}  Qb6 {[%clk 0:02:15]} 15. Nb3 {[%clk 0:02:12]}  Qxf2+ {[%clk 0:02:13]} 16. Kh1 {[%clk 0:02:10]}  Bxh3 {[%clk 0:02:00]} 17. Be3 {[%clk 0:02:01]}  Bxg2+ {[%clk 0:01:49]} 18. Bxg2 {[%clk 0:02:01]}  Qh4+ {[%clk 0:01:48]} 19. Kg1 {[%clk 0:02:00]}  Ng4 {[%clk 0:01:48]} 20. Bxd5+ {[%clk 0:01:52]}  Kh8 {[%clk 0:01:36]} 21. Qd2 {[%clk 0:01:41]}  cxd5 {[%clk 0:01:29]} 22. Bf4 {[%clk 0:01:38]}  Rxf4 {[%clk 0:01:18]} 23. Qxf4 {[%clk 0:01:36]}  Rf8 {[%clk 0:01:18]} 24. Qd6 {[%clk 0:01:24]}  Qf2+ {[%clk 0:01:12]} 25. Kh1 {[%clk 0:01:24]}  Be5 {[%clk 0:01:07]} 26. Qxe5+ {[%clk 0:01:21]}  Nxe5 {[%clk 0:01:05]} 27. Rxe5 {[%clk 0:01:18]}  Qf3+ {[%clk 0:01:03]} 0-1

[Event "January 2 Late 2024"]
[Site "https://www.chess.com"]
[Date "2024.01.02"]
[Round "3"]
[White "Blanco Diez, David"]
[Black "Yagupov, Igor"]
[Result "0-1"]
[Board "120"]
[TimeControl "180+1"]
[WhiteFideId "32032927"]
[BlackFideId "4113632"]
[WhiteElo "2415"]
[BlackElo "2617"]
[WhiteTeam "ESP"]
[BlackTeam "RUS"]
[WhiteClock "0:00:13"]
[BlackClock "0:01:10"]

1. d4 {[%clk 0:03:00]}  d5 {[%clk 0:02:59]} 2. Nc3 {[%clk 0:03:00]}  Nf6 {[%clk 0:02:58]} 3. Bg5 {[%clk 0:03:00]}  Nbd7 {[%clk 0:02:57]} 4. Nf3 {[%clk 0:02:58]}  h6 {[%clk 0:02:55]} 5. Bh4 {[%clk 0:02:58]}  e6 {[%clk 0:02:52]} 6. e4 {[%clk 0:02:58]}  g5 {[%clk 0:02:51]} 7. Bg3 {[%clk 0:02:58]}  Nxe4 {[%clk 0:02:50]} 8. Nxe4 {[%clk 0:02:58]}  dxe4 {[%clk 0:02:51]} 9. Ne5 {[%clk 0:02:59]}  Bg7 {[%clk 0:02:50]} 10. h4 {[%clk 0:02:58]}  Nxe5 {[%clk 0:02:48]} 11. Bxe5 {[%clk 0:02:58]}  Bxe5 {[%clk 0:02:47]} 12. dxe5 {[%clk 0:02:59]}  Qxd1+ {[%clk 0:02:45]} 13. Rxd1 {[%clk 0:03:00]}  g4 {[%clk 0:02:43]} 14. h5 {[%clk 0:02:38]}  Rg8 {[%clk 0:02:41]} 15. Rd4 {[%clk 0:02:27]}  Bd7 {[%clk 0:02:40]} 16. Rxe4 {[%clk 0:02:23]}  Bc6 {[%clk 0:02:40]} 17. Re3 {[%clk 0:02:08]}  Rd8 {[%clk 0:02:36]} 18. Rh2 {[%clk 0:01:57]}  Rg5 {[%clk 0:02:33]} 19. Bc4 {[%clk 0:01:53]}  Rd4 {[%clk 0:02:30]} 20. Bb3 {[%clk 0:01:46]}  Re4 {[%clk 0:02:30]} 21. Rxe4 {[%clk 0:01:02]}  Bxe4 {[%clk 0:02:27]} 22. Kd2 {[%clk 0:00:52]}  Rxe5 {[%clk 0:02:26]} 23. c3 {[%clk 0:00:46]}  Ke7 {[%clk 0:02:19]} 24. Bc4 {[%clk 0:00:42]}  Bd5 {[%clk 0:02:12]} 25. Bxd5 {[%clk 0:00:37]}  Rxd5+ {[%clk 0:02:11]} 26. Ke3 {[%clk 0:00:37]}  Rd1 {[%clk 0:02:09]} 27. Rh4 {[%clk 0:00:32]}  f5 {[%clk 0:02:09]} 28. f3 {[%clk 0:00:30]}  gxf3 {[%clk 0:01:56]} 29. gxf3 {[%clk 0:00:30]}  Re1+ {[%clk 0:01:54]} 30. Kd3 {[%clk 0:00:23]}  Rf1 {[%clk 0:01:51]} 31. Ke3 {[%clk 0:00:20]}  Rg1 {[%clk 0:01:45]} 32. Rh2 {[%clk 0:00:18]}  e5 {[%clk 0:01:42]} 33. f4 {[%clk 0:00:17]}  Rg3+ {[%clk 0:01:39]} 34. Kf2 {[%clk 0:00:16]}  exf4 {[%clk 0:01:40]} 35. Rh4 {[%clk 0:00:16]}  Rg4 {[%clk 0:01:34]} 36. Rh3 {[%clk 0:00:17]}  Ke6 {[%clk 0:01:34]} 37. Rd3 {[%clk 0:00:17]}  Rh4 {[%clk 0:01:32]} 38. Rd8 {[%clk 0:00:17]}  Rxh5 {[%clk 0:01:30]} 39. Rb8 {[%clk 0:00:17]}  Rh2+ {[%clk 0:01:29]} 40. Kf3 {[%clk 0:00:16]}  Rxb2 {[%clk 0:01:29]} 41. Kxf4 {[%clk 0:00:16]}  b5 {[%clk 0:01:25]} 42. Rh8 {[%clk 0:00:16]}  Rxa2 {[%clk 0:01:21]} 43. Rxh6+ {[%clk 0:00:16]}  Kd5 {[%clk 0:01:22]} 44. Kxf5 {[%clk 0:00:16]}  Rf2+ {[%clk 0:01:17]} 45. Kg4 {[%clk 0:00:15]}  Rc2 {[%clk 0:01:14]} 46. Rh3 {[%clk 0:00:14]}  Kc4 {[%clk 0:01:13]} 47. Rh7 {[%clk 0:00:14]}  c5 {[%clk 0:01:12]} 48. Rxa7 {[%clk 0:00:14]}  Rxc3 {[%clk 0:01:13]} 49. Kf4 {[%clk 0:00:14]}  Rd3 {[%clk 0:01:12]} 50. Ke4 {[%clk 0:00:15]}  Rd1 {[%clk 0:01:12]} 51. Ra2 {[%clk 0:00:14]}  Re1+ {[%clk 0:01:12]} 52. Kf3 {[%clk 0:00:14]}  b4 {[%clk 0:01:12]} 53. Rh2 {[%clk 0:00:13]}  b3 {[%clk 0:01:11]} 54. Rh1 {[%clk 0:00:13]}  Rxh1 {[%clk 0:01:10]} 0-1

[Event "January 2 Late 2024"]
[Site "https://www.chess.com"]
[Date "2024.01.02"]
[Round "3"]
[White "Alvarado, Carlos"]
[Black "Titus, Andrew"]
[Result "0-1"]
[Board "121"]
[TimeControl "180+1"]
[WhiteFideId "3800555"]
[BlackFideId "2059770"]
[WhiteElo "2415"]
[BlackElo "2610"]
[WhiteTeam "PER"]
[BlackTeam "USA"]
[WhiteClock "0:00:00"]
[BlackClock "0:00:12"]

1. d4 {[%clk 0:02:59]}  d5 {[%clk 0:02:58]} 2. Nf3 {[%clk 0:02:52]}  Nf6 {[%clk 0:02:58]} 3. c4 {[%clk 0:02:49]}  e6 {[%clk 0:02:45]} 4. Nc3 {[%clk 0:02:43]}  Be7 {[%clk 0:02:40]} 5. Bf4 {[%clk 0:02:42]}  O-O {[%clk 0:02:39]} 6. e3 {[%clk 0:02:39]}  Nbd7 {[%clk 0:02:39]} 7. c5 {[%clk 0:02:36]}  Nh5 {[%clk 0:02:35]} 8. Bd3 {[%clk 0:02:30]}  Nxf4 {[%clk 0:02:31]} 9. exf4 {[%clk 0:02:30]}  b6 {[%clk 0:02:32]} 10. b4 {[%clk 0:02:27]}  a5 {[%clk 0:02:24]} 11. a3 {[%clk 0:02:26]}  c6 {[%clk 0:02:19]} 12. O-O {[%clk 0:02:24]}  Qc7 {[%clk 0:02:16]} 13. g3 {[%clk 0:02:19]}  Ba6 {[%clk 0:02:15]} 14. Bxa6 {[%clk 0:02:17]}  Rxa6 {[%clk 0:02:14]} 15. cxb6 {[%clk 0:01:46]}  Qxb6 {[%clk 0:02:08]} 16. bxa5 {[%clk 0:01:41]}  Qxa5 {[%clk 0:02:05]} 17. Qc2 {[%clk 0:01:31]}  c5 {[%clk 0:02:03]} 18. a4 {[%clk 0:01:14]}  c4 {[%clk 0:01:54]} 19. Ng5 {[%clk 0:01:00]}  g6 {[%clk 0:01:50]} 20. Rfb1 {[%clk 0:00:56]}  Qc7 {[%clk 0:01:45]} 21. Qe2 {[%clk 0:00:50]}  Bf6 {[%clk 0:01:41]} 22. Nf3 {[%clk 0:00:47]}  Rfa8 {[%clk 0:01:37]} 23. Ne5 {[%clk 0:00:39]}  Nb6 {[%clk 0:01:26]} 24. h4 {[%clk 0:00:23]}  Nxa4 {[%clk 0:01:11]} 25. Nxa4 {[%clk 0:00:23]}  Rxa4 {[%clk 0:01:12]} 26. Rxa4 {[%clk 0:00:23]}  Rxa4 {[%clk 0:01:12]} 27. h5 {[%clk 0:00:23]}  c3 {[%clk 0:01:01]} 28. Qc2 {[%clk 0:00:21]}  Rxd4 {[%clk 0:00:59]} 29. hxg6 {[%clk 0:00:20]}  hxg6 {[%clk 0:00:56]} 30. Nxg6 {[%clk 0:00:19]}  Rd2 {[%clk 0:00:56]} 31. Qa4 {[%clk 0:00:18]}  fxg6 {[%clk 0:00:45]} 32. Qe8+ {[%clk 0:00:18]}  Kh7 {[%clk 0:00:44]} 33. Kg2 {[%clk 0:00:16]}  Bg7 {[%clk 0:00:40]} 34. Rh1+ {[%clk 0:00:15]}  Bh6 {[%clk 0:00:41]} 35. Qxe6 {[%clk 0:00:10]}  c2 {[%clk 0:00:34]} 36. f5 {[%clk 0:00:08]}  Qg7 {[%clk 0:00:24]} 37. fxg6+ {[%clk 0:00:08]}  Qxg6 {[%clk 0:00:25]} 38. Qd7+ {[%clk 0:00:07]}  Kg8 {[%clk 0:00:22]} 39. Qc8+ {[%clk 0:00:07]}  Bf8 {[%clk 0:00:21]} 40. Rc1 {[%clk 0:00:03]}  Qe4+ {[%clk 0:00:20]} 41. Kh3 {[%clk 0:00:02]}  Rxf2 {[%clk 0:00:16]} 42. Qe8 {[%clk 0:00:00]}  Qxe8 {[%clk 0:00:12]} 0-1

[Event "January 2 Late 2024"]
[Site "https://www.chess.com"]
[Date "2024.01.02"]
[Round "3"]
[White "Golubev, Mikhail"]
[Black "Filipovic, Slobodan J"]
[Result "1-0"]
[Board "123"]
[TimeControl "180+1"]
[WhiteFideId "14100983"]
[BlackFideId "939633"]
[WhiteElo "2609"]
[BlackElo "2413"]
[WhiteTeam "UKR"]
[BlackTeam "SRB"]
[WhiteClock "0:00:40"]
[BlackClock "0:00:12"]

1. e4 {[%clk 0:03:00]}  c5 {[%clk 0:03:00]} 2. Nf3 {[%clk 0:03:00]}  Nc6 {[%clk 0:03:00]} 3. Nc3 {[%clk 0:02:59]}  Nf6 {[%clk 0:02:59]} 4. Bb5 {[%clk 0:02:56]}  e5 {[%clk 0:02:44]} 5. Bxc6 {[%clk 0:02:50]}  dxc6 {[%clk 0:02:45]} 6. Nxe5 {[%clk 0:02:50]}  Qe7 {[%clk 0:02:41]} 7. d4 {[%clk 0:02:32]}  cxd4 {[%clk 0:02:33]} 8. Qxd4 {[%clk 0:02:33]}  Bh3 {[%clk 0:02:06]} 9. Nxc6 {[%clk 0:02:07]}  bxc6 {[%clk 0:01:59]} 10. gxh3 {[%clk 0:02:07]}  Rd8 {[%clk 0:01:58]} 11. Qc4 {[%clk 0:02:04]}  Qc5 {[%clk 0:01:26]} 12. Qxc5 {[%clk 0:01:42]}  Bxc5 {[%clk 0:01:27]} 13. Ke2 {[%clk 0:01:42]}  Bd4 {[%clk 0:01:23]} 14. f3 {[%clk 0:01:41]}  Bxc3 {[%clk 0:01:22]} 15. bxc3 {[%clk 0:01:41]}  O-O {[%clk 0:01:04]} 16. Bg5 {[%clk 0:01:40]}  Rfe8 {[%clk 0:01:00]} 17. Rhd1 {[%clk 0:01:34]}  h6 {[%clk 0:00:55]} 18. Bxf6 {[%clk 0:01:32]}  gxf6 {[%clk 0:00:56]} 19. Rxd8 {[%clk 0:01:30]}  Rxd8 {[%clk 0:00:56]} 20. Rd1 {[%clk 0:01:29]}  Rb8 {[%clk 0:00:45]} 21. Rd6 {[%clk 0:01:28]}  Rb2 {[%clk 0:00:44]} 22. Kd3 {[%clk 0:01:24]}  Rxa2 {[%clk 0:00:41]} 23. Rxf6 {[%clk 0:01:23]}  Kg7 {[%clk 0:00:26]} 24. Rxc6 {[%clk 0:01:21]}  a5 {[%clk 0:00:27]} 25. Ra6 {[%clk 0:01:16]}  a4 {[%clk 0:00:27]} 26. c4 {[%clk 0:01:16]}  a3 {[%clk 0:00:25]} 27. c5 {[%clk 0:01:14]}  Ra1 {[%clk 0:00:25]} 28. c6 {[%clk 0:01:05]}  Rd1+ {[%clk 0:00:22]} 29. Ke2 {[%clk 0:00:56]}  Rd6 {[%clk 0:00:15]} 30. c7 {[%clk 0:00:42]}  Rxa6 {[%clk 0:00:16]} 31. c8=Q {[%clk 0:00:42]}  a2 {[%clk 0:00:15]} 32. Qxa6 {[%clk 0:00:41]}  a1=Q {[%clk 0:00:12]} 33. Qxa1+ {[%clk 0:00:40]} 1-0